bitfinex/quotes_BTCUSD_20241211
["timestamp","ask_amount","ask_price","bid_price","bid_amount"]
[1733907523832,0.06363341,98171.0,98170.0,0.00033629]
[1733907524152,0.03243321,98171.0,98170.0,0.18556153]
[1733907524372,0.02480187,98171.0,98170.0,0.18556153]
[1733907524580,0.02480187,98171.0,98170.0,0.19669475]
[1733907525135,0.00762622,98179.0,98178.0,0.203711]
[1733907525338,0.02478399,98179.0,98178.0,0.38833624]
[1733907526435,0.03241061,98179.0,98178.0,0.39533624]
[1733907526654,0.03341061,98179.0,98178.0,0.39533624]
[1733907526858,0.02578399,98179.0,98178.0,0.39533624]
[1733907527816,0.0257876,98179.0,98178.0,0.39533624]
[1733907529847,0.00762748,98189.0,98188.0,0.20369]
[1733907530055,0.01597529,98200.0,98188.0,0.20369]
[1733907530056,0.00762748,98198.0,98189.0,0.0803]
[1733907530273,0.00762748,98198.0,98186.0,0.203694]
[1733907530274,8.58e-05,98200.0,98197.0,0.329972]
[1733907530507,8.58e-05,98200.0,98199.0,0.203668]
[1733907530744,8.58e-05,98200.0,98199.0,0.30899324]
[1733907532064,8.58e-05,98200.0,98199.0,0.38709324]
[1733907532472,8.58e-05,98200.0,98199.0,0.39409324]
[1733907532473,0.0010858,98200.0,98199.0,0.39409324]
[1733907532848,0.0010858,98200.0,98199.0,0.39709324]
[1733907533691,0.0010858,98200.0,98199.0,0.41719048]
[1733907534507,8.58e-05,98200.0,98199.0,0.41019048]
[1733907534707,8.58e-05,98200.0,98199.0,0.40639703]
[1733907534931,0.0010858,98200.0,98199.0,0.42645961]
[1733907538803,0.0010858,98200.0,98199.0,0.31819979]
[1733907543036,0.0010858,98200.0,98199.0,0.39809979]
[1733907545058,0.0010858,98200.0,98199.0,0.31819979]
[1733907552124,0.0010858,98200.0,98199.0,0.01]
[1733907552524,0.01059217,98200.0,98199.0,0.01]
[1733907552722,0.01819277,98200.0,98199.0,0.01]
[1733907552929,0.01059217,98200.0,98199.0,0.01]
[1733907553296,0.01819277,98200.0,98199.0,0.01]
[1733907553504,0.01059217,98200.0,98199.0,0.01]
[1733907553725,0.00959217,98200.0,98199.0,0.003]
[1733907553938,0.00959217,98200.0,98199.0,0.005]
[1733907554137,0.01719277,98200.0,98199.0,0.005]
[1733907554371,0.01719277,98200.0,98199.0,0.10732524]
[1733907554571,0.00959217,98200.0,98199.0,0.10732524]
[1733907555366,0.00959217,98200.0,98199.0,0.10832524]
[1733907555568,0.01059217,98200.0,98199.0,0.11632524]
[1733907557170,0.01819277,98200.0,98199.0,0.11632524]
[1733907557375,0.03342749,98200.0,98199.0,0.11632524]
[1733907557571,0.01059217,98200.0,98199.0,0.11632524]
[1733907558412,0.01821711,98200.0,98199.0,0.11632524]
[1733907558614,0.03345183,98200.0,98199.0,0.11632524]
[1733907561270,0.0010858,98200.0,98199.0,0.11632524]
[1733907561468,0.03350579,98200.0,98199.0,0.11632524]
[1733907561698,0.00871403,98200.0,98199.0,0.11632524]
[1733907561900,0.04304108,98200.0,98199.0,0.11632524]
[1733907562134,0.03350579,98200.0,98199.0,0.11632524]
[1733907562328,0.0335064,98200.0,98199.0,0.11632524]
[1733907566967,0.03351021,98200.0,98199.0,0.11632524]
[1733907567825,0.03352868,98200.0,98199.0,0.11632524]
[1733907570925,0.03353085,98200.0,98199.0,0.11632524]
[1733907571285,0.03353822,98200.0,98199.0,0.11632524]
[1733907573689,0.03990629,98200.0,98199.0,0.31999324]
[1733907574114,0.03990865,98200.0,98199.0,0.31999324]
[1733907575747,0.05212752,98200.0,98199.0,0.31999324]
[1733907578180,0.05212752,98200.0,98199.0,0.214668]
[1733907578523,0.06803713,98200.0,98199.0,0.011]
[1733907578733,0.06803713,98200.0,98195.0,0.203675]
[1733907578734,0.05212752,98200.0,98196.0,0.203674]
[1733907578966,0.0669525,98199.0,98197.0,0.10532524]
[1733907579178,0.05104172,98198.0,98197.0,0.10532524]
[1733907579771,0.04467365,98198.0,98197.0,0.10532524]
[1733907580406,0.02085466,98198.0,98197.0,0.11332524]
[1733907580613,0.04567481,98198.0,98197.0,0.11332524]
[1733907580827,0.05522102,98198.0,98197.0,0.11332524]
[1733907581029,0.04567481,98198.0,98197.0,0.11332524]
[1733907581439,0.04567481,98198.0,98197.0,0.11632524]
[1733907583562,0.09107481,98198.0,98197.0,0.011]
[1733907583794,0.18805609,98198.0,98197.0,0.011]
[1733907584006,0.17278215,98198.0,98197.0,0.011]
[1733907584774,0.17277909,98198.0,98197.0,0.011]
[1733907585641,0.19133491,98198.0,98197.0,0.011]
[1733907585839,0.19770374,98198.0,98197.0,0.011]
[1733907586444,0.19770374,98198.0,98197.0,0.008]
[1733907586648,0.19670374,98198.0,98193.0,0.203679]
[1733907586803,0.19670374,98198.0,98197.0,0.007]
[1733907586804,0.1281,98198.0,98197.0,0.007]
[1733907587006,0.18867429,98198.0,98197.0,0.007]
[1733907587209,0.1982175,98198.0,98197.0,0.007]
[1733907587415,0.2212175,98198.0,98197.0,0.005]
[1733907587614,0.35843484,98198.0,98183.0,0.203699]
[1733907587814,0.09161483,98192.0,98183.0,0.203699]
[1733907587998,0.0701175,98191.0,98183.0,0.203699]
[1733907588394,0.05420545,98191.0,98183.0,0.203699]
[1733907588699,0.07010771,98191.0,98183.0,0.203699]
[1733907589103,0.09310771,98191.0,98187.0,0.203692]
[1733907589518,0.07402128,98191.0,98183.0,0.203699]
[1733907589929,0.05416384,98191.0,98183.0,0.203699]
[1733907590136,0.07399932,98191.0,98183.0,0.203699]
[1733907590354,0.07399356,98191.0,98183.0,0.203699]
[1733907590558,0.07399356,98191.0,98190.0,0.0011716]
[1733907591182,0.07399356,98191.0,98190.0,0.0001716]
[1733907592039,0.05099356,98191.0,98190.0,0.10549684]
[1733907592265,0.06687919,98191.0,98190.0,0.10549684]
[1733907592468,0.03878711,98191.0,98190.0,0.10549684]
[1733907592879,0.05099356,98191.0,98190.0,0.10549684]
[1733907593095,0.03115808,98191.0,98190.0,0.10549684]
[1733907593301,0.03878293,98191.0,98190.0,0.10549684]
[1733907593506,0.05098269,98191.0,98190.0,0.10549684]
[1733907593715,0.03878293,98191.0,98190.0,0.10549684]
[1733907593942,0.05098269,98191.0,98190.0,0.10549684]
[1733907594150,0.03878293,98191.0,98190.0,0.10549684]
[1733907594347,0.03878293,98191.0,98190.0,0.10651524]
[1733907594554,0.03241344,98191.0,98190.0,0.10549684]
[1733907594779,0.02478859,98191.0,98190.0,0.10651517]
[1733907596239,0.02578859,98191.0,98190.0,0.10951517]
[1733907596618,0.02478859,98191.0,98190.0,0.10951517]
[1733907596864,0.02478859,98191.0,98190.0,0.10651517]
[1733907596992,0.02578859,98191.0,98190.0,0.10651517]
[1733907597211,0.02578859,98191.0,98190.0,0.11051517]
[1733907601039,0.02578859,98191.0,98190.0,0.10651517]
[1733907601254,0.01053407,98191.0,98190.0,0.10651517]
[1733907601461,0.01053407,98191.0,98190.0,0.38291497]
[1733907601462,7e-08,98191.0,98190.0,0.38291497]
[1733907601666,7e-08,98191.0,98190.0,0.51832405]
[1733907602085,7e-08,98191.0,98190.0,0.86055009]
[1733907602300,8.58e-05,98200.0,98190.0,0.86055009]
[1733907602301,8e-07,98200.0,98199.0,0.480868]
[1733907602509,8.58e-05,98220.0,98199.0,0.480868]
[1733907602510,8.58e-05,98220.0,98209.0,0.15]
[1733907602715,8.58e-05,98220.0,98219.0,0.38865124]
[1733907602933,8.58e-05,98220.0,98219.0,0.43515124]
[1733907603356,0.01016498,98254.0,98219.0,0.43515124]
[1733907603357,0.03503699,98244.0,98222.0,0.15]
[1733907603570,0.01522157,98243.0,98229.0,0.39173024]
[1733907603775,0.00063692,98230.0,98229.0,0.39173024]
[1733907606239,0.00163692,98230.0,98229.0,0.39173024]
[1733907606654,0.00063692,98230.0,98229.0,0.39173024]
[1733907607064,0.00163692,98230.0,98229.0,0.41500694]
[1733907607276,0.00063692,98230.0,98229.0,0.40700694]
[1733907607489,0.00063692,98230.0,98229.0,0.40200694]
[1733907607693,0.00063692,98230.0,98229.0,0.41000694]
[1733907607694,0.00163692,98230.0,98229.0,0.41000694]
[1733907607911,0.00063692,98230.0,98229.0,0.40800694]
[1733907608309,0.00163692,98230.0,98229.0,0.41700694]
[1733907608519,9.2e-07,98230.0,98229.0,0.56700694]
[1733907608729,9.2e-07,98230.0,98229.0,0.86700694]
[1733907609134,9.2e-07,98230.0,98229.0,0.86100694]
[1733907609547,8.58e-05,98260.0,98259.0,0.203543]
[1733907609777,8.58e-05,98260.0,98259.0,0.30886824]
[1733907610801,8.58e-05,98260.0,98259.0,0.30903293]
[1733907611004,0.0020858,98260.0,98259.0,0.30903293]
[1733907611359,0.0010858,98260.0,98259.0,0.30903293]
[1733907611589,0.1461858,98260.0,98259.0,0.00016469]
[1733907611946,0.2961858,98260.0,98259.0,0.00016469]
[1733907612141,0.30376037,98260.0,98259.0,0.00016469]
[1733907612770,0.30476037,98260.0,98259.0,0.00016469]
[1733907612972,0.30376037,98260.0,98259.0,0.00016469]
[1733907613180,0.30276037,98260.0,98259.0,0.00016469]
[1733907613385,0.30376037,98260.0,98259.0,0.00016469]
[1733907613598,0.31322456,98260.0,98259.0,0.00016469]
[1733907616758,0.31321996,98260.0,98259.0,0.00016469]
[1733907619963,0.0828,98232.0,98219.0,0.203624]
[1733907620201,0.203601,98231.0,98220.0,0.10532524]
[1733907620380,0.203621,98222.0,98215.0,0.00055112]
[1733907620581,0.00947668,98221.0,98216.0,0.10532524]
[1733907620785,0.00947668,98227.0,98216.0,0.10532524]
[1733907620987,0.00947668,98226.0,98216.0,0.10532524]
[1733907621131,0.00947668,98225.0,98216.0,0.10532524]
[1733907621336,0.00947668,98224.0,98216.0,0.10532524]
[1733907621554,0.20361,98227.0,98216.0,0.10532524]
[1733907621555,0.00947668,98223.0,98216.0,0.10532524]
[1733907621755,0.0075813,98226.0,98216.0,0.10532524]
[1733907621756,0.00947668,98225.0,98216.0,0.10532524]
[1733907622010,0.0075813,98226.0,98218.0,0.203628]
[1733907622011,0.00947668,98224.0,98218.0,0.203628]
[1733907622219,0.00947668,98233.0,98232.0,0.203599]
[1733907622499,0.00947668,98241.0,98238.0,0.203587]
[1733907622662,4e-07,98270.0,98247.0,0.203568]
[1733907622663,0.00947668,98248.0,98247.0,0.203568]
[1733907623005,0.00947668,98248.0,98247.0,0.30889324]
[1733907623351,0.00758572,98257.0,98247.0,0.30889324]
[1733907623352,0.00947668,98257.0,98256.0,0.203549]
[1733907623558,0.00948489,98257.0,98256.0,0.10532524]
[1733907623979,0.00948489,98257.0,98256.0,0.10548999]
[1733907625344,0.00948489,98257.0,98256.0,0.00016475]
[1733907625522,0.13561209,98257.0,98256.0,0.00016475]
[1733907625732,0.53845909,98257.0,98256.0,0.00016475]
[1733907625903,0.55059624,98257.0,98256.0,0.00016475]
[1733907626109,0.55065776,98257.0,98256.0,0.00016475]
[1733907626318,0.5506852,98257.0,98256.0,0.00016475]
[1733907626715,0.5516852,98257.0,98256.0,0.00016475]
[1733907626939,0.5506852,98257.0,98256.0,0.00016475]
[1733907627090,0.55170929,98257.0,98256.0,0.00016475]
[1733907627296,0.53750851,98257.0,98256.0,0.00016475]
[1733907627515,0.55271102,98257.0,98256.0,0.00016475]
[1733907629399,0.55271102,98257.0,98232.0,0.203599]
[1733907629400,0.023,98256.0,98232.0,0.203599]
[1733907629649,0.023,98248.0,98232.0,0.0001648]
[1733907629775,0.203595,98235.0,98232.0,0.0001648]
[1733907630014,0.04448816,98234.0,98232.0,0.0001648]
[1733907630190,0.203595,98235.0,98232.0,0.0001648]
[1733907630191,0.04448816,98233.0,98232.0,0.0001648]
[1733907630497,0.03231268,98233.0,98232.0,0.0001648]
[1733907630794,0.04448816,98233.0,98232.0,0.0001648]
[1733907631011,0.03231268,98233.0,98232.0,0.0001648]
[1733907632470,0.0455333,98233.0,98232.0,0.0001648]
[1733907632905,0.0445333,98233.0,98232.0,0.10549004]
[1733907633057,0.03235325,98233.0,98232.0,0.10549004]
[1733907633261,0.03335325,98233.0,98232.0,0.10549004]
[1733907633631,0.03435325,98233.0,98232.0,0.10549004]
[1733907634247,0.03435325,98233.0,98232.0,0.10649004]
[1733907634454,0.03335325,98233.0,98232.0,0.10649004]
[1733907634705,0.03235325,98233.0,98232.0,0.10549004]
[1733907634941,0.03335325,98233.0,98232.0,0.10649004]
[1733907635152,0.0455333,98233.0,98232.0,0.10649004]
[1733907635455,0.203594,98235.0,98232.0,0.10649004]
[1733907635677,0.0257397,98233.0,98232.0,0.10649004]
[1733907635896,0.02079175,98233.0,98232.0,0.10649004]
[1733907636100,0.04553143,98233.0,98232.0,0.10649004]
[1733907636307,0.04453143,98233.0,98232.0,0.10649004]
[1733907636513,0.04553143,98233.0,98232.0,0.10549004]
[1733907637814,0.04653143,98233.0,98232.0,0.10549004]
[1733907638634,0.04653143,98233.0,98232.0,0.0001648]
[1733907638862,0.04653143,98233.0,98230.0,0.0001716]
[1733907638863,0.203599,98232.0,98230.0,0.00013911]
[1733907639069,0.04453143,98231.0,98230.0,0.00030391]
[1733907639887,0.05468104,98231.0,98230.0,0.00030391]
[1733907640096,0.04453143,98231.0,98230.0,0.00030391]
[1733907641382,0.04453143,98231.0,98230.0,0.10562915]
[1733907641922,0.04453851,98231.0,98230.0,0.10562915]
[1733907642136,0.04553851,98231.0,98230.0,0.10562915]
[1733907642548,0.04453851,98231.0,98230.0,0.10562915]
[1733907643592,0.04653851,98231.0,98230.0,0.10562915]
[1733907643792,0.04453851,98231.0,98230.0,0.10562915]
[1733907644207,0.04653851,98231.0,98230.0,0.10562915]
[1733907644421,0.04753851,98231.0,98230.0,0.10562915]
[1733907644838,0.02673968,98231.0,98230.0,0.10562915]
[1733907645049,0.04653935,98231.0,98230.0,0.10562915]
[1733907645286,0.02279967,98231.0,98230.0,0.10562915]
[1733907645494,0.0475505,98231.0,98230.0,0.10562915]
[1733907645716,0.0465505,98231.0,98230.0,0.10562915]
[1733907645928,0.0475505,98231.0,98230.0,0.10562915]
[1733907646105,0.0455505,98231.0,98230.0,0.10562915]
[1733907646958,0.0465505,98231.0,98230.0,0.10562915]
[1733907647386,0.0455505,98231.0,98230.0,0.10562915]
[1733907647588,0.0465505,98231.0,98230.0,0.10562915]
[1733907648212,0.0455505,98231.0,98230.0,0.10562915]
[1733907648388,0.0465505,98231.0,98230.0,0.10562915]
[1733907648724,0.0465505,98231.0,98230.0,0.00030391]
[1733907648940,0.0455505,98231.0,98230.0,0.00030391]
[1733907649146,0.0685505,98231.0,98230.0,0.00030391]
[1733907649321,0.1512505,98231.0,98230.0,0.00030391]
[1733907649673,0.1995505,98231.0,98230.0,0.00030391]
[1733907650430,0.20890171,98231.0,98230.0,0.00030391]
[1733907650568,0.21090171,98231.0,98230.0,0.00030391]
[1733907650766,0.21190171,98231.0,98230.0,0.00030391]
[1733907651242,0.21090171,98231.0,98230.0,0.00030391]
[1733907651595,0.21190171,98231.0,98230.0,0.00030391]
[1733907653820,0.023,98229.0,98209.0,0.203646]
[1733907654021,0.01587247,98219.0,98210.0,0.10532524]
[1733907654227,0.02475083,98218.0,98210.0,0.10532524]
[1733907654431,0.01981424,98217.0,98210.0,0.10532524]
[1733907654667,0.04456507,98216.0,98210.0,0.10532524]
[1733907654842,0.02933379,98215.0,98210.0,0.10532524]
[1733907655041,0.03237169,98214.0,98211.0,0.203643]
[1733907655265,0.04456507,98214.0,98211.0,0.30896824]
[1733907655512,0.04456507,98213.0,98211.0,0.30896824]
[1733907655726,0.04456507,98212.0,98211.0,0.30896824]
[1733907655925,0.03237169,98212.0,98211.0,0.30896824]
[1733907656100,0.03873941,98212.0,98211.0,0.30896824]
[1733907656317,0.03873941,98212.0,98211.0,0.31496824]
[1733907656511,0.03873941,98212.0,98211.0,0.30896824]
[1733907656723,0.05093279,98212.0,98211.0,0.30896824]
[1733907656890,0.03973941,98212.0,98211.0,0.31596824]
[1733907657094,0.05193279,98212.0,98211.0,0.31596824]
[1733907657296,0.03973941,98212.0,98211.0,0.31596824]
[1733907657508,0.05196219,98212.0,98211.0,0.31596824]
[1733907657708,0.03976881,98212.0,98211.0,0.31596824]
[1733907657960,0.04559449,98212.0,98211.0,0.31896824]
[1733907658171,0.03340111,98212.0,98211.0,0.31896824]
[1733907658324,0.04559449,98212.0,98211.0,0.31896824]
[1733907658518,0.03340111,98212.0,98211.0,0.31896824]
[1733907658841,0.04559449,98212.0,98211.0,0.31896824]
[1733907659062,0.03340111,98212.0,98211.0,0.31896824]
[1733907659239,0.04559449,98212.0,98211.0,0.31896824]
[1733907660411,0.04559449,98212.0,98211.0,0.01]
[1733907660547,0.12498025,98212.0,98211.0,0.01]
[1733907660758,0.19050752,98212.0,98211.0,0.01]
[1733907661159,0.20918101,98212.0,98211.0,0.007]
[1733907661362,0.203643,98211.0,98209.0,0.00055112]
[1733907661578,0.06328101,98210.0,98209.0,0.00055112]
[1733907661972,0.06114114,98210.0,98209.0,0.00055112]
[1733907662153,0.0798032,98210.0,98209.0,0.00055112]
[1733907662353,0.25280018,98210.0,98209.0,0.00055112]
[1733907662552,0.25283271,98210.0,98209.0,0.00055112]
[1733907663258,0.34418161,98210.0,98209.0,0.00055112]
[1733907663458,0.35791398,98210.0,98209.0,0.00055112]
[1733907663639,0.203681,98193.0,98190.0,0.0001716]
[1733907663862,0.01981573,98192.0,98190.0,0.0001716]
[1733907664050,0.05729989,98191.0,98190.0,0.0001716]
[1733907664306,0.0509543,98191.0,98190.0,0.0001716]
[1733907664501,0.03876,98191.0,98190.0,0.0001716]
[1733907666057,0.03239109,98191.0,98190.0,0.0001716]
[1733907666798,0.03339109,98191.0,98190.0,0.0001716]
[1733907667896,0.03439109,98191.0,98190.0,0.0001716]
[1733907668513,0.03239109,98191.0,98190.0,0.0001716]
[1733907668661,0.03339109,98191.0,98190.0,0.0001716]
[1733907668863,0.03439109,98191.0,98190.0,0.0001716]
[1733907670285,0.02676966,98191.0,98190.0,0.0001716]
[1733907670502,0.03439109,98191.0,98190.0,0.0001716]
[1733907670911,0.08289109,98191.0,98190.0,0.0001716]
[1733907671582,0.08189109,98191.0,98190.0,0.0001716]
[1733907671795,0.09675766,98191.0,98190.0,0.0001716]
[1733907671926,0.08289109,98191.0,98190.0,0.0001716]
[1733907672134,0.05810489,98191.0,98190.0,0.0001716]
[1733907672383,0.09666432,98191.0,98190.0,0.0001716]
[1733907672588,0.09666432,98191.0,98190.0,0.18509684]
[1733907672589,0.04055943,98191.0,98190.0,0.18509684]
[1733907672781,0.01050611,98191.0,98190.0,0.18611511]
[1733907672998,0.001,98191.0,98190.0,0.18611511]
[1733907673221,0.001,98191.0,98190.0,0.23421497]
[1733907673442,0.001,98191.0,98190.0,0.23319684]
[1733907674300,0.002,98191.0,98190.0,0.23319684]
[1733907674918,0.00950222,98201.0,98190.0,0.23319684]
[1733907675119,0.00055119,98210.0,98198.0,0.10532524]
[1733907675291,0.00950393,98209.0,98208.0,0.203649]
[1733907675664,0.00950393,98209.0,98208.0,0.30897424]
[1733907681497,0.00951178,98209.0,98208.0,0.30897424]
[1733907684879,0.00951178,98209.0,98208.0,0.30997424]
[1733907685116,0.00951178,98209.0,98208.0,0.31097424]
[1733907685849,0.00951178,98209.0,98208.0,0.30897424]
[1733907686303,0.00951178,98209.0,98208.0,0.30997424]
[1733907687340,0.00063699,98210.0,98208.0,0.30997424]
[1733907687563,0.00063699,98210.0,98209.0,0.10532524]
[1733907687809,0.0101484,98210.0,98209.0,0.10532524]
[1733907688763,0.0101484,98210.0,98209.0,0.10732524]
[1733907689312,0.00163699,98210.0,98209.0,0.15774339]
[1733907689759,0.00163699,98210.0,98209.0,0.15459481]
[1733907691002,0.00063699,98210.0,98209.0,0.15359481]
[1733907691206,0.00063699,98210.0,98209.0,0.15559481]
[1733907691436,0.00163699,98210.0,98209.0,0.15659481]
[1733907693462,0.00163699,98210.0,98209.0,0.16701483]
[1733907694085,0.00063699,98210.0,98209.0,0.16601483]
[1733907694290,0.00063699,98210.0,98209.0,0.16401483]
[1733907694476,0.00163699,98210.0,98209.0,0.17001483]
[1733907694680,0.00163699,98210.0,98209.0,0.16601483]
[1733907694883,0.00063699,98210.0,98209.0,0.16601483]
[1733907695037,0.00163699,98210.0,98209.0,0.17001483]
[1733907695456,0.00163699,98210.0,98209.0,0.17601483]
[1733907698790,0.00163699,98210.0,98209.0,0.12659668]
[1733907699353,0.00163699,98210.0,98209.0,0.12761472]
[1733907704024,0.01115795,98210.0,98209.0,0.12761472]
[1733907704229,0.02639205,98210.0,98209.0,0.11617666]
[1733907704433,0.03401035,98210.0,98209.0,0.11617666]
[1733907704623,0.04037751,98210.0,98209.0,0.11617666]
[1733907705384,0.03937751,98210.0,98209.0,0.10417666]
[1733907705507,0.03937751,98210.0,98209.0,0.10517666]
[1733907705710,0.03937751,98210.0,98209.0,0.005]
[1733907705918,0.203647,98209.0,98200.0,0.0001716]
[1733907706123,0.023,98206.0,98200.0,0.0001716]
[1733907706333,0.01587316,98203.0,98200.0,0.0001716]
[1733907706530,0.306863,98201.0,98200.0,0.0001716]
[1733907706827,0.37683526,98201.0,98200.0,0.0001716]
[1733907707047,0.52683526,98201.0,98200.0,0.0001716]
[1733907708276,0.52683526,98201.0,98171.0,0.203725]
[1733907708277,0.226684,98191.0,98176.0,0.203713]
[1733907708523,0.28446943,98191.0,98176.0,0.203713]
[1733907709311,0.20368,98193.0,98181.0,0.203705]
[1733907709508,0.203684,98191.0,98176.0,0.203713]
[1733907709726,0.227684,98191.0,98176.0,0.203713]
[1733907709929,0.227684,98191.0,98170.0,0.0001716]
[1733907710138,0.507484,98191.0,98170.0,0.0001716]
[1733907710696,0.508484,98191.0,98170.0,0.0001716]
[1733907710906,0.56621955,98191.0,98170.0,0.0001716]
[1733907711113,0.58884354,98191.0,98170.0,0.0001716]
[1733907712320,0.58784354,98191.0,98170.0,0.0001716]
[1733907712480,0.58680892,98191.0,98170.0,0.0001716]
[1733907712704,0.69891221,98191.0,98170.0,0.0001716]
[1733907713354,0.66011751,98191.0,98170.0,0.0001716]
[1733907713571,0.69885217,98191.0,98170.0,0.0001716]
[1733907714326,0.69248181,98191.0,98170.0,0.0001716]
[1733907714527,0.69448181,98191.0,98170.0,0.0001716]
[1733907715581,0.58937852,98191.0,98170.0,0.0001716]
[1733907716414,0.57038234,98191.0,98170.0,0.0001716]
[1733907716618,0.57030214,98191.0,98170.0,0.0001716]
[1733907717332,0.58610065,98191.0,98170.0,0.0001716]
[1733907719283,0.57030214,98191.0,98170.0,0.0001716]
[1733907720501,0.57030214,98191.0,98182.0,0.203703]
[1733907720502,0.26181814,98191.0,98182.0,0.203703]
[1733907720709,0.02606571,98191.0,98182.0,0.203703]
[1733907720912,0.01848095,98191.0,98190.0,0.10549684]
[1733907721964,0.02465047,98204.0,98190.0,0.10549684]
[1733907722109,0.00948095,98203.0,98191.0,0.10532524]
[1733907722313,0.00948095,98202.0,98196.0,0.203672]
[1733907722517,0.00948095,98201.0,98197.0,0.10532524]
[1733907722717,0.00948095,98201.0,98200.0,0.203664]
[1733907722919,0.00947381,98201.0,98200.0,0.10532524]
[1733907723948,0.00947381,98209.0,98200.0,0.10532524]
[1733907724191,0.00947381,98208.0,98202.0,0.203661]
[1733907724335,0.00947381,98208.0,98190.0,0.0001716]
[1733907724336,0.00947381,98207.0,98204.0,0.203657]
[1733907724715,0.005,98203.0,98198.0,0.203668]
[1733907724850,0.001,98201.0,98199.0,0.10532524]
[1733907725202,0.001,98201.0,98200.0,0.203665]
[1733907725406,0.00947869,98202.0,98200.0,0.30899024]
[1733907725620,0.005,98208.0,98201.0,0.10532524]
[1733907725791,0.01147998,98207.0,98201.0,0.10532524]
[1733907725991,0.003,98203.0,98201.0,0.10532524]
[1733907726171,0.00947998,98202.0,98201.0,0.10532524]
[1733907726575,0.00947998,98202.0,98190.0,0.0001716]
[1733907726576,0.023,98201.0,98190.0,0.0001716]
[1733907726776,0.203675,98196.0,98190.0,0.0001716]
[1733907727006,0.0476495,98195.0,98190.0,0.0001716]
[1733907727204,0.00947998,98194.0,98190.0,0.0001716]
[1733907727429,0.03816952,98195.0,98190.0,0.0001716]
[1733907727430,0.0246495,98193.0,98190.0,0.0001716]
[1733907727603,0.0246495,98192.0,98190.0,0.0001716]
[1733907727805,0.00947998,98191.0,98190.0,0.0001716]
[1733907728264,0.04496846,98191.0,98190.0,0.0001716]
[1733907728598,0.03550634,98191.0,98190.0,0.0001716]
[1733907728806,0.04499845,98191.0,98190.0,0.0021716]
[1733907729005,0.04499845,98191.0,98190.0,0.0011716]
[1733907729414,0.04499845,98191.0,98190.0,0.0031716]
[1733907733437,0.05896126,98191.0,98190.0,0.0031716]
[1733907735013,0.05896126,98191.0,98190.0,0.0021716]
[1733907735214,0.07478145,98191.0,98190.0,0.0001716]
[1733907735467,0.05896126,98191.0,98190.0,0.0011716]
[1733907735652,0.023,98190.0,98177.0,0.203712]
[1733907735881,0.023,98190.0,98172.0,0.285422]
[1733907735882,0.203692,98187.0,98178.0,0.30532524]
[1733907736086,0.023,98185.0,98178.0,0.30532524]
[1733907736314,0.0386423,98184.0,98178.0,0.30532524]
[1733907736524,0.0386423,98183.0,98178.0,0.30532524]
[1733907736733,0.0386423,98182.0,98178.0,0.30532524]
[1733907736954,0.0386423,98181.0,98179.0,0.203709]
[1733907737102,0.02467949,98180.0,98179.0,0.203709]
[1733907737508,0.02467949,98180.0,98178.0,0.30532524]
[1733907737715,0.02467949,98179.0,98178.0,0.30532524]
[1733907738317,0.00761609,98182.0,98178.0,0.3054901]
[1733907738490,0.02475081,98179.0,98178.0,0.3054901]
[1733907739574,0.02475081,98179.0,98178.0,0.3064901]
[1733907740982,0.03873731,98179.0,98178.0,0.3064901]
[1733907741292,0.03873731,98179.0,98178.0,0.3054901]
[1733907741487,0.03873731,98179.0,98178.0,0.3084901]
[1733907741639,0.03873876,98179.0,98178.0,0.3094901]
[1733907741841,0.03873876,98179.0,98178.0,0.3064901]
[1733907742430,0.03873876,98179.0,98178.0,0.3054901]
[1733907742656,0.03873876,98179.0,98178.0,0.3064901]
[1733907742859,0.03873876,98179.0,98178.0,0.20116486]
[1733907743107,0.05092776,98179.0,98178.0,0.20116486]
[1733907743483,0.06115642,98179.0,98178.0,0.20116486]
[1733907744096,0.08415642,98179.0,98178.0,0.20116486]
[1733907744298,0.08515642,98179.0,98178.0,0.20116486]
[1733907744749,0.08515642,98179.0,98178.0,0.20016486]
[1733907744950,0.16419825,98179.0,98178.0,0.20016486]
[1733907745127,0.1909894,98179.0,98178.0,0.16831057]
[1733907745533,0.1808319,98179.0,98178.0,0.16831057]
[1733907747827,0.16178659,98179.0,98178.0,0.16831057]
[1733907748825,0.14197947,98179.0,98178.0,0.16831057]
[1733907749035,0.06097947,98179.0,98178.0,0.16831057]
[1733907749265,0.02775081,98179.0,98178.0,0.27363581]
[1733907749473,0.02965658,98179.0,98178.0,0.27363581]
[1733907750093,0.0408408,98179.0,98178.0,0.27363581]
[1733907750295,0.0388408,98179.0,98178.0,0.27363581]
[1733907750501,0.0398408,98179.0,98178.0,0.27363581]
[1733907750699,0.0398408,98179.0,98178.0,0.27663581]
[1733907750897,0.0388408,98179.0,98178.0,0.27363581]
[1733907751106,0.01904145,98179.0,98178.0,0.27363581]
[1733907751257,0.01904145,98179.0,98178.0,0.27763581]
[1733907751459,0.01904145,98179.0,98178.0,0.35683581]
[1733907752087,0.04378999,98179.0,98178.0,0.35683581]
[1733907752532,0.03427132,98179.0,98178.0,0.35683581]
[1733907752741,0.03427132,98179.0,98178.0,0.35583581]
[1733907753055,0.01904145,98179.0,98178.0,0.35583581]
[1733907753486,0.01904145,98179.0,98178.0,0.35283581]
[1733907753795,0.01904145,98179.0,98178.0,0.35783581]
[1733907753999,0.01904145,98179.0,98178.0,0.55603581]
[1733907754206,8.58e-05,98190.0,98178.0,0.62683581]
[1733907754431,8.58e-05,98190.0,98189.0,0.30901324]
[1733907754631,8.58e-05,98190.0,98189.0,0.38831324]
[1733907754835,8.58e-05,98190.0,98189.0,0.53831324]
[1733907755464,0.0010858,98190.0,98189.0,0.53831324]
[1733907757138,0.0010858,98190.0,98189.0,0.54131324]
[1733907757334,8.58e-05,98190.0,98189.0,0.54131324]
[1733907757748,8.58e-05,98190.0,98189.0,0.39131324]
[1733907757863,0.0010858,98190.0,98189.0,0.39531324]
[1733907758278,0.0010858,98190.0,98189.0,0.10532524]
[1733907758498,0.0010858,98190.0,98189.0,0.1063435]
[1733907758898,0.0010858,98190.0,98189.0,0.3100315]
[1733907759110,0.0010858,98190.0,98189.0,0.30901324]
[1733907762196,0.0010858,98190.0,98185.0,0.203697]
[1733907762399,0.0010858,98190.0,98187.0,0.203692]
[1733907762626,0.0010858,98190.0,98188.0,0.10532524]
[1733907763228,0.0010858,98190.0,98189.0,0.203688]
[1733907763589,0.0010858,98190.0,98178.0,0.37201957]
[1733907763590,0.01059051,98190.0,98185.0,0.002]
[1733907763876,0.00950471,98189.0,98185.0,0.002]
[1733907764073,0.0010858,98190.0,98179.0,0.203708]
[1733907764074,0.00950471,98188.0,98179.0,0.407416]
[1733907764281,0.00950471,98187.0,98181.0,0.203705]
[1733907764484,0.00950471,98186.0,98178.0,0.16831057]
[1733907764632,0.03250471,98185.0,98178.0,0.16831057]
[1733907764833,0.00950471,98184.0,98178.0,0.16831057]
[1733907765032,0.00950471,98183.0,98178.0,0.16831057]
[1733907765258,0.00950471,98182.0,98178.0,0.16831057]